Cogmind - Beta 16 @@@ ROGUE MODE // 2026.01.09 @ 09:42:53 Player: c4-BRK Result: Destroyed by H-66 Slayer with Gauss Rifle Performance ------------- Evolutions (3) 1500 Regions Visited (10) 2000 Robots Destroyed (47) 235 Value Destroyed (1297) 1297 Prototype IDs (28) 560 Alien Tech Used (0) 0 Bonus (747) 747 TOTAL SCORE: 6339 Bonus ------- Follower Combat Kills 147 Aligned with FarCom 300 Met Imprinter 300 Cogmind --------- Core Integrity 0/700 Matter 248/300 Energy 99/100 System Corruption 0% Temperature Cool (0) Movement Core (50) Location -6/Proximity Caves Parts ------- > --- POWER (2) -------- (None) > --- PROPULSION (2) --- (None) > --- UTILITY (6) ------ (None) > --- WEAPON (3) ------- (None) > --- INVENTORY (5) ---- Heavy Ion Cannon AWS/Gauss Molecular Deconstructor Peak State ------------ > --- POWER ------------ Makeshift Power Source Light Angular Momentum Engine > --- PROPULSION ------- Armored Huge Wheel > --- UTILITY ---------- Heat Sink Improved Heat Sink Medium Storage Unit Advanced Weight Redist. System Advanced Visual Processing Unit Improved Light Armor Plating > --- WEAPON ----------- Heavy Beamcaster Heavy Ion Cannon Bore Cannon > --- INVENTORY -------- Compact Battery Advanced ECM Suite Plasma Cannon AWS/Gauss Slug Cannon Mini Assault Cannon Molecular Deconstructor CR-A16's Pointy Stick [Rating: 51] Favorites ----------- Power Light Nuclear Core Engine Light Ion Engine Power Core Light Nuclear Core Propulsion Armored Huge Wheel Wheel Armored Huge Wheel Utility Heat Sink Device Heat Sink Storage Medium Storage Unit Processor Advanced Visual Processing Unit Protection Improved Light Armor Plating Weapon Mini Assault Cannon Energy Gun Wave Gun Energy Cannon Heavy Ion Cannon Ballistic Gun Assault Rifle Ballistic Cannon Mini Assault Cannon Launcher Rocket Launcher Piercing Weapon CR-A16's Pointy Stick Build | -11 -10 -10 -10 -9 -8 -7 -7 -7 -7 -6 ------- Run | Yrd Mat Min Exi Min Mat Fac Low Low Zio Pro Slots Evolved 6 | . . . . . 4 2 . . . . Power 1 | . . . . . 1 . . . . . Propulsion . | . . . . . . . . . . . Utility 4 | . . . . . 2 2 . . . . Weapon 1 | . . . . . 1 . . . . . Parts Attached 51 | 6 . . . 5 18 7 . 6 4 5 Power 8 | 1 . . . . 3 1 . 1 1 1 Engine 5 | 1 . . . . 1 1 . . 1 1 Core 3 | . . . . . 2 . . 1 . . Reactor . | . . . . . . . . . . . Propulsion 5 | 2 . . . 1 1 . . 1 . . Treads . | . . . . . . . . . . . Leg . | . . . . . . . . . . . Wheel 5 | 2 . . . 1 1 . . 1 . . Hover . | . . . . . . . . . . . Flight . | . . . . . . . . . . . Utility 14 | 1 . . . 2 5 3 . 2 . 1 Device 9 | . . . . 2 3 3 . 1 . . Storage 2 | 1 . . . . 1 . . . . . Processor 1 | . . . . . . . . . . 1 Hackware . | . . . . . . . . . . . Protection 2 | . . . . . 1 . . 1 . . Artifact . | . . . . . . . . . . . Weapon 24 | 2 . . . 2 9 3 . 2 3 3 Energy Gun 7 | 1 . . . 1 1 1 . 1 2 . Energy Cannon 7 | . . . . . 4 1 . 1 . 1 Ballistic Gun 1 | 1 . . . . . . . . . . Ballistic Cannon 6 | . . . . . 3 1 . . 1 1 Launcher 2 | . . . . 1 1 . . . . . Special Weapon . | . . . . . . . . . . . Impact Weapon . | . . . . . . . . . . . Slashing Weapon . | . . . . . . . . . . . Piercing Weapon 1 | . . . . . . . . . . 1 Special Melee Weapon . | . . . . . . . . . . . Unidentified Prototypes 5 | . . . . 1 2 2 . . . . Corrupted Parts 2 | . . . . . 2 . . . . . System Corruption 9 | . . . . . 9 . . . . . Parts Lost 24 | . . . . 1 4 1 . 6 . 12 Power 5 | . . . . . 1 . . 2 . 2 Propulsion 2 | . . . . . . . . 1 . 1 Utility 9 | . . . . . 3 . . 1 . 5 Weapon 8 | . . . . 1 . 1 . 2 . 4 Highest Loss Streak 8 | . . . . 1 1 1 . 5 . 8 To Critical Strikes 1 | . . . . . . . . 1 . . Average Backups 5 | . . . . 2 4 6 8 5 7 7 Power . | . . . . . . . 1 . . . Propulsion . | . . . . . . 1 1 . . . Utility . | . . . . . . . . . 1 1 Weapon 4 | . . . . 1 3 5 6 4 5 5 Tool/Special . | . . . . . . . . . . . Unused Backups 8 | 1 . . . . 1 1 1 . . 4 Power . | . . . . . . . . . . . Propulsion . | . . . . . . . . . . . Utility 1 | . . . . . . . . . . 1 Weapon 7 | 1 . . . . 1 1 1 . . 3 Tool/Special . | . . . . . . . . . . . Average Slot Usage (%) 82 | . 85 85 85 93 84 80 92 83 90 48 Engine 7 | . 14 14 14 14 10 3 7 3 5 4 Core 4 | . . . . . 1 10 7 6 7 . Wheel 12 | . 28 28 28 28 14 7 7 6 7 3 Device 21 | . . . . 11 19 28 38 31 30 9 Storage 8 | . 14 14 14 14 9 7 7 7 7 6 Protection 2 | . . . . . 3 . . 3 7 2 Energy Gun 7 | . 14 14 14 14 3 6 7 6 7 4 Energy Cannon 5 | . . . . . 6 6 7 6 7 4 Ballistic Gun 2 | . 14 14 14 9 . . . . . . Ballistic Cannon 6 | . . . . . 12 6 7 7 7 5 Peak Build Rating 51 | 6 6 6 7 17 37 48 48 48 50 51 Average Rating 33 | 3 6 6 6 12 27 40 48 45 49 28 On Entrance 23 | . 6 6 6 7 11 32 48 48 45 50 Avg Prop Armor Cover (%) 6 | . . . . . 3 . . 8 8 . Naked Turns 14 | . . . . . . . . . . 14 Heaviest Build 58 | 12 12 12 12 16 52 54 54 55 58 58 Greatest Support 37 | 26 26 26 26 26 28 37 37 37 37 37 Greatest Overweight (x) 6 | 1 . . . . 3 1 1 4 4 6 Average Overweight (x) 1 | . . . . . 1 1 1 1 2 1 Largest Inventory Capacity 10 | 8 8 8 8 8 10 10 10 10 10 10 Average Capacity 9 | 6 8 8 8 8 8 10 10 10 10 9 Most Carried 10 | 4 . . 2 6 10 10 10 10 10 10 Average Carried 6 | . . . . 3 5 8 10 6 9 9 Final Capacity 10 | 8 8 8 8 8 10 10 10 10 10 5 Final Carried 10 | . . . 2 4 8 10 10 8 10 5 Class Distribution -------------------- 28% | Scavenger-Tank 27% | Mutant 26% | Skirmisher 12% | Gunner 3% | Tank Dominant Class ---------------- Mutant | -10/Materials Mutant | -10/Mines Mutant | -10/Exiles Skirmisher | -9/Mines Skirmisher | -8/Materials Skirmisher | -7/Factory Gunner | -7/Lower Caves Tank | -7/Lower Caves Scavenger-Tank | -7/Zion Mutant | -6/Proximity Caves Resources | -11 -10 -10 -10 -9 -8 -7 -7 -7 -7 -6 ----------- Run | Yrd Mat Min Exi Min Mat Fac Low Low Zio Pro Matter Collected 1239 | 220 . . . 138 390 139 24 186 20 122 Remotely . | . . . . . . . . . . . Salvage Created 1461 | . . . . 110 600 387 . 307 . 57 Parts 86 | . . . . 12 26 24 . 20 . 4 Haulers Intercepted 4 | . . . . . 3 1 . . . . Recyclers Shooed 1 | . . . . . . 1 . . . . Parts Field Recycled 6 | . . . . . 6 . . . . . Retrieved Matter 75 | . . . . . 75 . . . . . Parts Self-Destructed 25 | . . . . . . . 2 16 . 7 Prevented 3 | . . . . . . . . 2 . 1 Parts Restored . | . . . . . . . . . . . Kills | -11 -10 -10 -10 -9 -8 -7 -7 -7 -7 -6 ------- Run | Yrd Mat Min Exi Min Mat Fac Low Low Zio Pro Combat Hostiles Destroyed 38 | . . . . 6 9 8 . 11 . 4 Guns 9 | . . . . 2 4 . . 3 . . Cannons 24 | . . . . . 5 7 . 8 . 4 AOE 5 | . . . . 4 . 1 . . . . Classes Destroyed 8 | . . . . 2 5 . . 1 . . Worker 2 | . . . . . 1 1 . . . . Hauler 4 | . . . . . 3 1 . . . . Recycler 2 | . . . . . 2 . . . . . Watcher 1 | . . . . . 1 . . . . . Swarmer 21 | . . . . 4 3 3 . 7 . 4 Grunt 13 | . . . . 2 4 4 . 3 . . Sentry 3 | . . . . . 2 1 . . . . Mutant 1 | . . . . . . . . 1 . . Best Kill Streak 7 | . . . . 4 7 6 . 6 . 4 Combat Bots Only 6 | . . . . 4 4 4 . 6 . 4 Max Kills in Single Turn 4 | . . . . 4 3 1 . 1 . 1 Gunslinging . | . . . . . . . . . . . Exploded 4 | . . . . 4 . 1 . . . . Melee . | . . . . . . . . . . . Uniques/NPCs Destroyed . | . . . . . . . . . . . Combat | -11 -10 -10 -10 -9 -8 -7 -7 -7 -7 -6 -------- Run | Yrd Mat Min Exi Min Mat Fac Low Low Zio Pro Hostile Shots Fired 355 | . . . . 26 63 31 14 86 . 135 Missed 102 | . . . . 6 10 11 5 23 . 47 Hits 253 | . . . . 20 53 20 9 63 . 88 Projectile 253 | . . . . 20 53 20 9 63 . 88 Critical Strikes 6 | . . . . . 1 . . 1 . 4 Part Disruptions 2 | . . . . . . . . 2 . . Damage Taken 3974 | . . . . 237 736 282 37 943 . 1739 Core 878 | . . . . 60 97 57 14 96 . 554 Absorbed by Shields . | . . . . . . . . . . . Regen/Repaired (Parts) 106 | . . . . . . . . . 106 . Core Remaining (%) 86 | 100 . . . 76 82 . . . . . Volleys Fired 123 | . 5 . . 11 35 12 2 30 . 28 Largest 3 | . 2 . . 2 3 3 2 3 . 3 Hottest 194 | . 70 . . 85 171 164 124 160 . 194 Shots Fired 226 | . 10 . . 20 68 34 3 55 . 36 Gun 84 | . 10 . . 19 21 10 1 15 . 8 Cannon 140 | . . . . . 46 24 2 40 . 28 Launcher 2 | . . . . 1 1 . . . . . Special . | . . . . . . . . . . . Kinetic 115 | . 5 . . 9 36 12 1 26 . 26 Thermal 40 | . 5 . . 10 1 . . 14 . 10 Explosive 2 | . . . . 1 1 . . . . . Electromagnetic 69 | . . . . . 30 22 2 15 . . Robot Hit Streak 15 | . 1 . . 6 15 4 . 12 . 3 Robot Miss Streak 7 | . 4 . . 6 7 2 . 4 . 2 Penetration Max . | . . . . . . . . . . . Secondary Targets . | . . . . . . . . . . . Shots Hit Robots 129 | . 3 . . 12 39 23 . 35 . 17 Core Hits 68 | . 1 . . 9 24 15 . 15 . 4 Critical Kills . | . . . . . . . . . . . Critical Parts Destroyed . | . . . . . . . . . . . Critical Strikes 4 | . . . . . 1 . . 1 . 2 Destroy 1 | . . . . . . . . . . 1 Blast 3 | . . . . . 1 . . 1 . 1 Melee Attacks 8 | . . . . . . . . . . 8 Impact . | . . . . . . . . . . . Slashing . | . . . . . . . . . . . Piercing 8 | . . . . . . . . . . 8 Sneak Attacks . | . . . . . . . . . . . Combat Hostiles . | . . . . . . . . . . . Follow-up Attacks . | . . . . . . . . . . . Damage Inflicted 3369 | . 35 . . 331 974 624 . 906 . 499 Guns 901 | . 35 . . 171 243 133 . 221 . 98 Cannons 2021 | . . . . . 590 378 . 685 . 368 Explosions 414 | . . . . 160 141 113 . . . . Melee 33 | . . . . . . . . . . 33 Ramming . | . . . . . . . . . . . Kinetic 1507 | . 35 . . 79 453 130 . 468 . 342 Thermal 569 | . . . . 92 136 . . 217 . 124 Explosive 278 | . . . . 160 5 113 . . . . Electromagnetic 982 | . . . . . 380 381 . 221 . . Impact . | . . . . . . . . . . . Slashing . | . . . . . . . . . . . Piercing 33 | . . . . . . . . . . 33 Highest Corruption 14 | . . . . . 14 . . . . . Average Corruption 8 | . . . . . 8 . . . . . Corruption Purged . | . . . . . . . . . . . Corruption Blocked . | . . . . . . . . . . . Effects 15 | . . . . . 15 . . . . . Message Errors 2 | . . . . . 2 . . . . . Matter Fused 4 | . . . . . 4 . . . . . Heat Flow Errors 1 | . . . . . 1 . . . . . Energy Discharges 4 | . . . . . 4 . . . . . Data Loss (minor) 3 | . . . . . 3 . . . . . Alerts 1 | . . . . . 1 . . . . . Overload Shots . | . . . . . . . . . . . Overflow Damage 20 | . . . . . 10 . . 3 . 7 Projectiles 10 | . . . . . . . . 3 . 7 Explosions 10 | . . . . . 10 . . . . . Melee . | . . . . . . . . . . . Knockbacks 3 | . . . . . 1 . . 1 . 1 Impact . | . . . . . . . . . . . Kinetic 3 | . . . . . 1 . . 1 . 1 Secondary . | . . . . . . . . . . . Self-Inflicted Damage 113 | . . . . . 49 64 . . . . Shots 3 | . . . . . 2 1 . . . . Rammed . | . . . . . . . . . . . Targets Rammed . | . . . . . . . . . . . Kicked . | . . . . . . . . . . . Crushed . | . . . . . . . . . . . Highest Temperature 336 | . 18 . . 194 328 144 . 336 . 293 Average Temperature 88 | . 7 . . 99 73 41 . 154 . 77 Received Heat Transfer 1385 | . . . . 123 306 54 . 219 . 683 Effects 1 | . . . . . . . . . . 1 Energy Bleed 1 | . . . . . . . . . . 1 Siege Activations . | . . . . . . . . . . . Martial Activations . | . . . . . . . . . . . Shielding Activations . | . . . . . . . . . . . Robots Disrupted 1 | . . . . . . 1 . . . . Combat Hostiles 1 | . . . . . . 1 . . . . Robots Corrupted . | . . . . . . . . . . . Combat Hostiles . | . . . . . . . . . . . Parts Fried 3 | . . . . . 2 1 . . . . Impact Corruptions . | . . . . . . . . . . . Robots Melted . | . . . . . . . . . . . Combat Hostiles . | . . . . . . . . . . . Parts Melted 1 | . . . . 1 . . . . . . Heat Transferred 853 | . . . . 222 150 . . 296 . 185 Parts Sabotaged . | . . . . . . . . . . . Parts Stolen . | . . . . . . . . . . . Parts Stripped . | . . . . . . . . . . . Power Chain Reactions 2 | . . . . . 2 . . . . . Alert | -11 -10 -10 -10 -9 -8 -7 -7 -7 -7 -6 ------- Run | Yrd Mat Min Exi Min Mat Fac Low Low Zio Pro Maximum Alert Level . | . . . . . . . . . . . Low Security (%) 100 | 100 100 100 . 100 100 100 . . . . Level 1 . | . . . . . . . . . . . Level 2 . | . . . . . . . . . . . Level 3 . | . . . . . . . . . . . Level 4 . | . . . . . . . . . . . Level 5 . | . . . . . . . . . . . High Security . | . . . . . . . . . . . Max Security . | . . . . . . . . . . . Peak Influence 130 | . 4 . . 96 105 130 . . . . Initial 30 | . . . . . 28 30 . . . . Average 22 | . . . . 9 38 21 . . . . Influence Increases 1238 | . 4 . . 146 396 224 . 225 . 243 Destroy 0b10 Robot/C 820 | . . . . 120 180 160 . 200 . 160 Destroy 0b10 Robot/NC 50 | . . . . . 35 10 . . . 5 Destroy Leader 120 | . . . . 20 48 22 . 10 . 20 Allied During Kill 13 | . . . . . . . . . . 13 Successful Hack 37 | . 4 . . . 33 . . . . . Disable Machine 15 | . . . . . . 15 . . . . Destroy Structure 48 | . . . . 6 25 17 . . . . Lose Combat Pursuer 135 | . . . . . 75 . . 15 . 45 Influence Decreases 1238 | . 4 . . 72 401 179 114 225 . 243 Entered New Map 128 | . . . . . 46 39 43 . . . Time Decay 970 | . 4 . . 62 325 130 71 185 . 193 Lost Part 100 | . . . . 10 30 10 . 40 . 10 Lost Ally 40 | . . . . . . . . . . 40 Squads Dispatched 7 | . 1 . . . 3 3 . . . . Investigation 3 | . . . . . 2 1 . . . . Extermination . | . . . . . . . . . . . Reinforcement 4 | . 1 . . . 1 2 . . . . Assault . | . . . . . . . . . . . Garrison . | . . . . . . . . . . . Intercept . | . . . . . . . . . . . Searches Triggered . | . . . . . . . . . . . Construction Impeded . | . . . . . . . . . . . Haulers Reinforced 1 | . . . . . . 1 . . . . Active Scanning Responses . | . . . . . . . . . . . Cargo Convoy Interrupts . | . . . . . . . . . . . Stealth | -11 -10 -10 -10 -9 -8 -7 -7 -7 -7 -6 --------- Run | Yrd Mat Min Exi Min Mat Fac Low Low Zio Pro Distress Signals 1 | . . . . . . . . . . 1 Communications Jammed . | . . . . . . . . . . . Distress Signals . | . . . . . . . . . . . Times Spotted 62 | . 3 . . 3 17 7 2 12 . 18 Peak Tracking Total 7 | . 2 . . 4 5 3 2 7 . 7 Tactical Retreats 7 | . . . . . 3 . . 1 . 3 Traps | -11 -10 -10 -10 -9 -8 -7 -7 -7 -7 -6 ------- Run | Yrd Mat Min Exi Min Mat Fac Low Low Zio Pro Traps Triggered 1 | . . . . . . 1 . . . . Indirectly . | . . . . . . . . . . . Trap Hack Attempts . | . . . . . . . . . . . Triggered . | . . . . . . . . . . . Disarmed . | . . . . . . . . . . . Reprogrammed . | . . . . . . . . . . . Reused . | . . . . . . . . . . . Traps Extracted . | . . . . . . . . . . . Installed . | . . . . . . . . . . . Triggered . | . . . . . . . . . . . Machines | -11 -10 -10 -10 -9 -8 -7 -7 -7 -7 -6 ---------- Run | Yrd Mat Min Exi Min Mat Fac Low Low Zio Pro Machines Disabled 3 | . . . . . . 1 . 2 . . Max in Single Turn 1 | . . . . . . 1 . 1 . . Machines Repaired . | . . . . . . . . . . . Machines Dismantled . | . . . . . . . . . . . Machines Sabotaged . | . . . . . . . . . . . Overloaded Fab Kills . | . . . . . . . . . . . Hacking | -11 -10 -10 -10 -9 -8 -7 -7 -7 -7 -6 --------- Run | Yrd Mat Min Exi Min Mat Fac Low Low Zio Pro Machines Accessed 10 | . 1 . 3 . 3 2 . 1 . . Terminals 6 | . 1 . . . 2 2 . 1 . . Fabricators . | . . . . . . . . . . . Repair Stations 1 | . . . . . 1 . . . . . Recycling Units . | . . . . . . . . . . . Scanalyzers . | . . . . . . . . . . . Garrison Access . | . . . . . . . . . . . Total Hacks 53 | . 1 . 34 . 8 3 . 7 . . Successful 46 | . 1 . 34 . 4 . . 7 . . Failed 7 | . . . . . 4 3 . . . . Catastrophic 3 | . . . . . 2 1 . . . . Database Lockouts . | . . . . . . . . . . . Manual 5 | . . . 1 . 1 2 . 1 . . Terminals 17 | . 1 . . . 6 3 . 7 . . Fabricators . | . . . . . . . . . . . Repair Stations 2 | . . . . . 2 . . . . . Recycling Units . | . . . . . . . . . . . Scanalyzers . | . . . . . . . . . . . Garrison Access . | . . . . . . . . . . . Terminal Hacks 45 | . 1 . 34 . 3 . . 7 . . Record 40 | . . . 33 . . . . 7 . . Branch Access Points 1 | . . . . . 1 . . . . . Emergency Access Points 1 | . 1 . . . . . . . . . Patrol Status 1 | . . . . . 1 . . . . . Recall Investigation 1 | . . . . . 1 . . . . . Proto ID Catalog 1 | . . . 1 . . . . . . . Fabricator Hacks . | . . . . . . . . . . . Repair Station Hacks 1 | . . . . . 1 . . . . . Scan Component 1 | . . . . . 1 . . . . . Recycling Unit Hacks . | . . . . . . . . . . . Scanalyzer . | . . . . . . . . . . . Garrison Access Hacks . | . . . . . . . . . . . Unauthorized Hacks . | . . . . . . . . . . . Terminals . | . . . . . . . . . . . Fabricators . | . . . . . . . . . . . Repair Stations . | . . . . . . . . . . . Recycling Units . | . . . . . . . . . . . Scanalyzers . | . . . . . . . . . . . Garrison Access . | . . . . . . . . . . . Data Cores Recovered . | . . . . . . . . . . . Used . | . . . . . . . . . . . Hacking Detections 5 | . . . . . 3 1 . 1 . . Full Trace Events 4 | . . . . . 3 1 . . . . Feedback Events . | . . . . . . . . . . . Feedback Blocked . | . . . . . . . . . . . Robot Schematics Acquired . | . . . . . . . . . . . Robots Built . | . . . . . . . . . . . Authchips . | . . . . . . . . . . . Time . | . . . . . . . . . . . Total Robot Build Rating . | . . . . . . . . . . . Part Schematics Acquired . | . . . . . . . . . . . Parts Built . | . . . . . . . . . . . Authchips . | . . . . . . . . . . . Time . | . . . . . . . . . . . Total Part Build Rating . | . . . . . . . . . . . Part Studies Acquired . | . . . . . . . . . . . Parts Repaired . | . . . . . . . . . . . Time . | . . . . . . . . . . . Parts Recycled . | . . . . . . . . . . . Recycled Matter . | . . . . . . . . . . . Retrieved Matter . | . . . . . . . . . . . Retrieved Components . | . . . . . . . . . . . Parts Scanalyzed . | . . . . . . . . . . . Part Schematics Acquired . | . . . . . . . . . . . Parts Damaged . | . . . . . . . . . . . Bothacking | -11 -10 -10 -10 -9 -8 -7 -7 -7 -7 -6 ------------ Run | Yrd Mat Min Exi Min Mat Fac Low Low Zio Pro Used RIF Installer . | . . . . . . . . . . . Robots Hacked . | . . . . . . . . . . . Non-combat . | . . . . . . . . . . . Combat . | . . . . . . . . . . . Robot Hacks Applied . | . . . . . . . . . . . Relay Couplers Released . | . . . . . . . . . . . Fabnet Peak Effective % . | . . . . . . . . . . . Robots Rewired . | . . . . . . . . . . . Allies Hacked . | . . . . . . . . . . . Hacks Repelled . | . . . . . . . . . . . Allies | -11 -10 -10 -10 -9 -8 -7 -7 -7 -7 -6 -------- Run | Yrd Mat Min Exi Min Mat Fac Low Low Zio Pro Total Allies 6 | . . . . . . . . . 6 . Largest Group 6 | . . . . . . . . . 6 6 Highest-Rated Group 149 | . . . . . . . . . 149 149 Highest-Rated Ally 31 | . . . . . . . . . 31 31 Total Orders . | . . . . . . . . . . . Ally Attacks 39 | . . . . . . . . . . 39 Total Damage 513 | . . . . . . . . . . 513 Kills 5 | . . . . . . . . . . 5 Allies Corrupted 2 | . . . . . . . . . . 2 Allies Melted . | . . . . . . . . . . . Intel | -11 -10 -10 -10 -9 -8 -7 -7 -7 -7 -6 ------- Run | Yrd Mat Min Exi Min Mat Fac Low Low Zio Pro Active Infowar (turns) 1697 | . . . . 411 955 7 . . . 324 Optics 324 | . . . . . . . . . . 324 Sensors 1366 | . . . . 411 955 . . . . . ECM 7 | . . . . . . 7 . . . . Robot Analysis Total . | . . . . . . . . . . . Derelict Logs Recovered 6 | . . . . 1 . . 2 1 1 1 Drone Launches . | . . . . . . . . . . . Drone Recoveries . | . . . . . . . . . . . Exploration | -11 -10 -10 -10 -9 -8 -7 -7 -7 -7 -6 ------------- Run | Yrd Mat Min Exi Min Mat Fac Low Low Zio Pro Turns Passed 6886 | 58 144 27 469 811 1058 545 680 449 1714 931 Spaces Moved 4367 | 53 129 30 513 544 511 284 570 287 918 528 Core 616 | 24 . . . . . . . 21 439 132 Treads . | . . . . . . . . . . . Legs . | . . . . . . . . . . . Wheels 3751 | 29 129 30 513 544 511 284 570 266 479 396 Hover . | . . . . . . . . . . . Flight . | . . . . . . . . . . . Fastest Speed 50 | 50 90 90 90 80 95 115 115 115 115 50 Average Speed 124 | 85 90 90 90 87 109 115 115 121 177 151 Slowest Speed 350 | 100 90 90 90 90 125 115 115 250 250 350 Overloaded Moves . | . . . . . . . . . . . Propulsion Burnouts . | . . . . . . . . . . . Robots Hopped . | . . . . . . . . . . . Potential Cave-ins 2 | . . . . . . . . . . 2 Cave-ins Triggered . | . . . . . . . . . . . Exploration Rate (%) 48 | 4 26 12 89 94 32 11 70 52 81 63 Regions Visited 10 Branch Regions 7 Pre-discovered Areas 6 | . . . 1 1 . . . 1 3 . Known Exits Taken . | . . . . . . . . . . . Unknown Exits Taken 10 | 1 1 1 1 1 1 1 1 1 1 . Scrap Searched 9 | . . . . 2 . . 3 1 3 . Spaces Dug 10 | . . . . . . . 1 . . 9 Terrain Destroyed 76 | . . . . 6 28 18 1 7 . 16 Melee 6 | . . . . . . . . . . 6 Projectile 20 | . . . . . 1 1 1 7 . 10 AOE 50 | . . . . 6 27 17 . . . . Terrain Rammed . | . . . . . . . . . . . Walls Destroyed . | . . . . . . . . . . . Machines Disabled . | . . . . . . . . . . . Actions | -11 -10 -10 -10 -9 -8 -7 -7 -7 -7 -6 --------- Run | Yrd Mat Min Exi Min Mat Fac Low Low Zio Pro Total 5593 | 66 146 29 520 857 951 478 592 337 1005 612 Wait 944 | . 13 . . 290 355 156 12 10 75 33 Move 4357 | 52 128 29 512 543 510 283 569 286 917 528 Hop . | . . . . . . . . . . . Pick Up 55 | 7 . . 1 6 19 12 1 4 5 . Fast Attach 3 | . . . . . 1 1 . . . 1 Attach 29 | 6 . . . 2 8 5 . 5 1 2 Detach 2 | . . . . . . 1 . . . 1 Swap 23 | . . . . 3 12 2 . 1 3 2 Drop 29 | 1 . . . 2 11 6 1 1 4 3 Fire 123 | . 5 . . 11 35 12 2 30 . 28 Melee 8 | . . . . . . . . . . 8 Ram . | . . . . . . . . . . . Kick . | . . . . . . . . . . . Crush . | . . . . . . . . . . . Escape Stasis . | . . . . . . . . . . . Rewire 20 | . . . 7 . . . 7 . . 6 Trap . | . . . . . . . . . . . Miscellaneous . | . . . . . . . . . . . Route ------- -11/Scrapyard -10/Materials -10/Mines -10/Exiles -9/Mines -8/Materials -7/Factory -7/Lower Caves -7/Lower Caves -7/Zion -6/Proximity Caves (discovered 1 exit: Fac) History --------- Turn | Location | Event 2 | -11/Scrapyard | Met Revision 17 7 | -11/Scrapyard | Discovered new exit (range 15) 59 | -11/Scrapyard | Entered Materials 105 | -10/Materials | Discovered new exit (range 9) 203 | -10/Materials | Entered Mines 217 | -10/Mines | Assembled infested the area 225 | -10/Mines | Deemed a non-threat by the Exiles lab entrance 226 | -10/Mines | Discovered new exit (range 5) 230 | -10/Mines | Entered Exiles 257 | -10/Exiles | Met 8R-AWN 268 | -10/Exiles | Met EX-HEX 307 | -10/Exiles | Build established: Mutant 318 | -10/Exiles | Met EX-BIN 332 | -10/Exiles | Met EX-DEC 340 | -10/Exiles | Learned location of Zion (-7) 382 | -10/Exiles | Discovered new exit (range 14) 439 | -10/Exiles | Visited The Gauntlet 583 | -10/Exiles | Aligned with FarCom system 584 | -10/Exiles | Given EX-Vault access code 606 | -10/Exiles | Opened EX-Vault 614 | -10/Exiles | Found AWS/Gauss 632 | -10/Exiles | Warned to stay clear of 0b10 Research branches 699 | -10/Exiles | Left Exiles lab with AWS/Gauss 699 | -10/Exiles | Entered Mines 706 | -9/Mines | Received a Rocket Launcher from a helpful Derelict 738 | -9/Mines | Learned location of Storage (-9) 848 | -9/Mines | Found a damaged Exp. Sensor Array with a note attached 849 | -9/Mines | Found Prototype Device 850 | -9/Mines | Identified Exp. Sensor Array 983 | -9/Mines | A weapon hastily lodged in a ceiling crevice suddenly fell to the ground 1156 | -9/Mines | Build established: Skirmisher 1481 | -9/Mines | Discovered new exit (range 15) 1510 | -9/Mines | Entered Materials 1510 | -8/Materials | Evolved 4 slots: Power x1, Utility x2, Weapon x1 2439 | -8/Materials | System corruption reached 10% 2555 | -8/Materials | Discovered new exit (range 12) 2568 | -8/Materials | Entered Factory 2568 | -7/Factory | Evolved 2 slots: Utility x2 3086 | -7/Factory | Discovered new exit (range 11) 3113 | -7/Factory | Entered Lower Caves 3122 | -7/Lower Caves | Learned Factory stockpile data 3298 | -7/Lower Caves | Encountered a Warlord checkpoint 3401 | -7/Lower Caves | Build established: Gunner 3485 | -7/Lower Caves | Learned location of 1 exit from Proximity Caves 3633 | -7/Lower Caves | Discovered new exit (range 5) 3714 | -7/Lower Caves | Spotted B-75 Beast 3793 | -7/Lower Caves | Entered another Lower Caves area 3834 | -7/Lower Caves | Learned location of 1 exit from Research 3834 | -7/Lower Caves | Learned Research trap positions 3834 | -7/Lower Caves | Learned Extension trap positions 3834 | -7/Lower Caves | Learned Factory terminal intel 3836 | -7/Lower Caves | Attracted the attention of an 0b10 base 3910 | -7/Lower Caves | Lost 5 parts (1p1n1u2w) 3918 | -7/Lower Caves | Encountered a Warlord checkpoint 4120 | -7/Lower Caves | Acquired the password to a Derelict Tinkerer's latest research 4127 | -7/Lower Caves | Found Prototype Special Weapon 4151 | -7/Lower Caves | Discovered new exit (range 15) 4177 | -7/Lower Caves | Attacked by a delusional Derelict stockpiling parts 4242 | -7/Lower Caves | Entered Zion 4316 | -7/Zion | Learned location of Warlord (-5) 4517 | -7/Zion | Build established: Scavenger-Tank 4551 | -7/Zion | Gained Derelict followers 4673 | -7/Zion | Found CR-A16's Pointy Stick 4960 | -7/Zion | Learned location of Quarantine (-2) 5030 | -7/Zion | Learned Factory stockpile data 5598 | -7/Zion | Rebuked by Imprinter 5901 | -7/Zion | Discovered new exit (range 9) 5956 | -7/Zion | Entered Proximity Caves 5956 | -6/Proximity Caves | Accompanied by 6 allies 5957 | -6/Proximity Caves | Identified exit to Factory 5959 | -6/Proximity Caves | Spotter reported a threat 6030 | -6/Proximity Caves | Lost 5 allies 6072 | -6/Proximity Caves | Learned Factory machine intel 6152 | -6/Proximity Caves | Spotted B-75 Beast 6322 | -6/Proximity Caves | Lost 8 parts (2p4u2w) 6513 | -6/Proximity Caves | Lost 3 parts (1n1u1w) 6571 | -6/Proximity Caves | Build established: Mutant 6858 | -6/Proximity Caves | Core integrity fell below 50% 6875 | -6/Proximity Caves | Core integrity fell below 20% 6887 | -6/Proximity Caves | Destroyed by H-66 Slayer with Gauss Rifle Last Messages --------------- Hvy. Beamcaster destroyed. VTOL Module fries itself beyond repair. Lgt. Nuclear Core fries itself beyond repair. Destroyed VTOL Module. S-27 Virus destroyed. VTOL Module fries itself beyond repair. Destroyed VTOL Module. S-27 Virus destroyed. Acquired 19 matter. Acquired 38 matter. Acquired 11 matter. G-67 Veteran: "INCOMING HOSTILES. DEFEND SHIPMENT RENDEZVOUS PERIMETER." G-67 Veteran Lgt. Antimatter Reactor blasted off. Plasma Cannon destroyed. Critical hit (Burn: +37). Dropped Med. Storage Unit. Penetrated by Slug. Slug penetrates Wall. Map ----- +----------------------------------------------------+ | ?????????????????????????????????????????????????? | | ?????###?????????????????????????????????????????? | | ????## ?????????????????????????????????????????? | | ????? %?????????????????????????????????????????? | | ?????# ????????????????????????????????????????? | | ????##% #????????????????????????????????????????? | | ????#" ##???????????????????????????????????????? | | ????# * ##????####????????######????????????????? | | ??### ###### ##?###??# ###??????????????? | | ?## ### ### #?????????????? | | ?# #?????????????? | | ## ## ###???????????? | | # ### ???????????? | | # ### #??????????? | | # #?## #??????????? | | ] #??## #??????????? | | ]!! #???## #??????????? | | ## ##! ##????## #??????????? | | ?## #### ##??????## #??????????? | | ## #??###????????## #??????????? | | ##?????????????## #???????????? | | ###????##?????## #???????????? | | ##???# ### ## #???????????? | | ## #???# h #??# #???????????? | | ?## #???# ##??? #???????????? | | ??## ####### ##@ #???????????????????? | | ???# # ## #?## #?# #???????????????????? | | #??# # #??# #??# #???????????????????? | | #### # ##?# ???## #???????????????????? | | ## ##?# ?????# #????????????????? | | ## ##??# ?????# #???????????????? | | ######## #???# ??????# #??????????????? | | #??##### #???# ??????### ##??????????????? | | ##?# ## #???? ??????????# ##???????????????? | | #?# ## #?????????????????####????????????????? | | #?# ####?????????????????????????????????????? | | #??# #????????????????????????????????????????? | | #### ##???????????????????????????????????????? | | ## ###?????????????????????????????????????? | | ##????????????????????????????????????? | | ##???????????????????????????????????? | | ##??????????????????????????????????? | | % #??????????????????????????????????? | | ###### ##???????????